bitfinex-derivatives/quotes_BTCF0:USTF0_20250424
["timestamp","ask_amount","ask_price","bid_price","bid_amount"]
[1745508023655,0.2306681,93282.0,93281.0,0.3705686]
[1745508024055,0.0637,93282.0,93281.0,0.37869191]
[1745508024264,0.1708675,93282.0,93281.0,0.73949191]
[1745508024561,0.001,93282.0,93281.0,0.74449191]
[1745508024754,0.002,93282.0,93281.0,0.92949591]
[1745508025149,0.1071538,93294.0,93293.0,0.1607294]
[1745508025365,0.1071538,93294.0,93293.0,0.3207294]
[1745508025955,0.05356,93324.0,93303.0,0.0535716]
[1745508026154,0.063,93309.0,93308.0,0.1071376]
[1745508026460,0.063,93309.0,93308.0,0.2571376]
[1745508026656,0.063,93309.0,93308.0,0.6179376]
[1745508026858,0.0754,93321.0,93320.0,0.1071238]
[1745508027061,0.0754,93321.0,93320.0,0.5979238]
[1745508027365,0.1071227,93321.0,93320.0,0.6514848]
[1745508028366,0.0598,93322.0,93321.0,0.1071227]
[1745508028666,0.0598,93322.0,93321.0,0.3885227]
[1745508028853,0.1669215,93322.0,93321.0,0.3885227]
[1745508029162,0.1669215,93322.0,93321.0,0.5605227]
[1745508029561,0.0598,93322.0,93321.0,0.5605227]
[1745508029954,0.1669215,93322.0,93321.0,0.5605227]
[1745508031249,0.1699215,93322.0,93321.0,0.57476504]
[1745508032565,0.0628,93322.0,93321.0,0.57476504]
[1745508033564,0.1699215,93322.0,93321.0,0.57476504]
[1745508034469,0.0628,93322.0,93321.0,0.57476504]
[1745508034956,0.0011,93327.0,93326.0,0.1071169]
[1745508035164,0.0011,93327.0,93326.0,0.7999169]
[1745508035355,0.0011,93327.0,93326.0,0.8622169]
[1745508035661,0.1082158,93327.0,93326.0,0.8622169]
[1745508036065,0.1142158,93327.0,93326.0,0.8632169]
[1745508036365,0.1142158,93327.0,93326.0,0.6912169]
[1745508036770,0.1142158,93327.0,93326.0,0.5218]
[1745508036961,0.1755158,93327.0,93326.0,0.6289169]
[1745508038068,0.0684,93327.0,93326.0,0.6289169]
[1745508038270,0.1142158,93327.0,93326.0,0.6289169]
[1745508039166,0.2349158,93327.0,93326.0,0.6289169]
[1745508039559,0.2349158,93327.0,93326.0,0.5789169]
[1745508042070,0.1278,93327.0,93326.0,0.5789169]
[1745508042267,0.0665,93327.0,93326.0,0.5789169]
[1745508042462,0.0535483,93344.0,93343.0,0.1070963]
[1745508042658,0.1786483,93344.0,93343.0,0.2570963]
[1745508043061,0.1149483,93344.0,93343.0,0.2570963]
[1745508043369,0.0052,93352.0,93344.0,0.0535476]
[1745508043555,0.0052,93352.0,93348.0,0.0535453]
[1745508043756,0.0052,93352.0,93351.0,0.1070882]
[1745508043968,0.0052,93352.0,93351.0,0.2570882]
[1745508044157,0.1122871,93352.0,93351.0,0.172]
[1745508044352,0.1122871,93352.0,93351.0,0.4090882]
[1745508044767,0.1172871,93352.0,93351.0,0.4100882]
[1745508045275,0.1212871,93352.0,93351.0,0.2380882]
[1745508045675,0.1192871,93352.0,93351.0,0.2370882]
[1745508045874,0.1162871,93352.0,93351.0,0.2370882]
[1745508046064,0.1755871,93352.0,93351.0,0.2370882]
[1745508047177,0.1070928,93347.0,93346.0,0.00029]
[1745508047370,0.1070928,93347.0,93346.0,0.01029]
[1745508047559,0.4642208,93347.0,93346.0,0.01]
[1745508047760,0.1071146,93328.0,93327.0,0.1706711]
[1745508048069,0.1071146,93328.0,93327.0,0.3006711]
[1745508048461,0.1071146,93328.0,93327.0,0.1935575]
[1745508048662,0.1674146,93328.0,93327.0,0.1935575]
[1745508049069,0.1674146,93328.0,93327.0,0.1975575]
[1745508050470,0.1674146,93328.0,93327.0,0.01198839]
[1745508050862,0.1674146,93328.0,93327.0,0.004]
[1745508051273,0.2745626,93328.0,93327.0,0.007]
[1745508051462,0.3498826,93328.0,93327.0,0.007]
[1745508051668,0.8498826,93328.0,93327.0,0.007]
[1745508051972,0.1071204,93323.0,93322.0,0.00029]
[1745508052363,0.1071296,93315.0,93314.0,0.4679303]
[1745508052569,0.1071296,93315.0,93314.0,0.5879303]
[1745508052783,0.1071296,93315.0,93314.0,0.4808]
[1745508053164,0.1685296,93315.0,93314.0,0.4808]
[1745508053775,0.1685296,93315.0,93314.0,0.60074236]
[1745508054464,0.1685296,93315.0,93314.0,0.60274236]
[1745508054776,0.1685296,93315.0,93314.0,0.60574236]
[1745508055174,0.1685296,93315.0,93314.0,0.49861166]
[1745508055479,0.1685296,93315.0,93314.0,0.60574236]
[1745508055777,0.1685296,93315.0,93314.0,0.61395332]
[1745508055972,0.1685296,93315.0,93314.0,0.61195332]
[1745508056179,0.1685296,93315.0,93314.0,0.61295332]
[1745508057283,0.1685296,93315.0,93314.0,0.60995332]
[1745508057469,0.1685296,93315.0,93314.0,0.61195332]
[1745508058181,0.0535558,93331.0,93314.0,0.90562262]
[1745508058374,0.061,93331.0,93330.0,0.1071123]
[1745508058569,0.1681112,93331.0,93330.0,0.2671123]
[1745508059264,0.1681112,93331.0,93330.0,0.16]
[1745508059677,0.1071123,93330.0,93329.0,0.1705127]
[1745508059878,0.1712123,93330.0,93329.0,0.1705127]
[1745508060370,0.1712123,93330.0,93329.0,0.1071127]
[1745508060576,0.0535641,93317.0,93314.0,0.38182262]
[1745508060781,0.1071296,93315.0,93314.0,0.62895332]
[1745508061281,0.2267284,93316.0,93315.0,0.1071296]
[1745508061482,0.2267284,93316.0,93315.0,0.3360296]
[1745508061874,0.2267284,93316.0,93315.0,0.3991296]
[1745508062780,0.1660284,93316.0,93315.0,0.3991296]
[1745508063383,0.2267284,93316.0,93315.0,0.3991296]
[1745508063880,0.2267284,93316.0,93315.0,0.4001296]
[1745508064478,0.1071248,93320.0,93319.0,0.107125]
[1745508064686,0.1071248,93320.0,93319.0,0.257125]
[1745508065473,0.0606,93321.0,93320.0,0.1071238]
[1745508065679,0.1677227,93321.0,93320.0,0.3658238]
[1745508066276,0.0535602,93323.0,93320.0,0.3658238]
[1745508066483,0.0629,93327.0,93320.0,0.3658238]
[1745508066484,0.0606,93325.0,93324.0,0.1071192]
[1745508066685,0.0606,93325.0,93324.0,0.2471192]
[1745508067688,0.1677181,93325.0,93324.0,0.1]
[1745508067887,0.1071227,93321.0,93320.0,0.1187]
[1745508068086,0.1071227,93321.0,93320.0,0.3458238]
[1745508068581,0.1071227,93321.0,93320.0,0.3468238]
[1745508069784,0.1071227,93321.0,93320.0,0.121]
[1745508070084,0.4679227,93321.0,93320.0,0.001]
[1745508070273,0.1071296,93315.0,93314.0,0.3608]
[1745508070480,0.1071296,93315.0,93314.0,0.3808]
[1745508070677,0.1188,93320.0,93315.0,0.1071296]
[1745508070678,0.0591,93316.0,93315.0,0.1071296]
[1745508070982,0.3608,93343.0,93323.0,0.1071204]
[1745508071287,0.13604457,93350.0,93345.0,0.1070951]
[1745508071583,0.13604457,93350.0,93349.0,0.1070905]
[1745508071788,0.0591,93358.0,93349.0,0.5008]
[1745508071985,0.16380786,93359.0,93351.0,0.1070882]
[1745508072186,0.0535429,93354.0,93351.0,0.1270882]
[1745508072383,0.00160792,93356.0,93351.0,0.1270882]
[1745508072683,0.00160792,93356.0,93351.0,0.1866882]
[1745508072888,0.1122871,93352.0,93351.0,0.1866882]
[1745508073087,0.1122871,93352.0,93351.0,0.0796]
[1745508073476,0.1122871,93352.0,93351.0,0.2766882]
[1745508073882,0.0052,93352.0,93351.0,0.2766882]
[1745508074183,0.0052,93352.0,93351.0,0.3066882]
[1745508074382,0.0102,93352.0,93351.0,0.4138122]
[1745508075083,0.0102,93352.0,93351.0,0.5858122]
[1745508075676,0.0102,93352.0,93351.0,0.4786882]
[1745508076478,0.1070467,93388.0,93351.0,0.738724]
[1745508076683,0.1673481,93386.0,93385.0,0.4678493]
[1745508076890,0.1070527,93383.0,93382.0,0.107052]
[1745508077092,0.107071,93368.0,93367.0,0.1605983]
[1745508077390,0.1070848,93355.0,93354.0,0.1070847]
[1745508077690,0.1070848,93355.0,93354.0,0.1197]
[1745508077879,0.1070848,93355.0,93354.0,0.08096177]
[1745508078080,0.1070848,93355.0,93354.0,0.00801366]
[1745508078284,0.107086,93353.0,93352.0,0.0595]
[1745508078585,0.107086,93353.0,93352.0,0.1595]
[1745508078790,0.1070882,93351.0,93350.0,0.01275393]
[1745508078986,0.1070894,93350.0,93349.0,0.0634]
[1745508079287,0.1070894,93350.0,93348.0,0.00029]
[1745508079288,0.1070905,93349.0,93348.0,0.00029]
[1745508079489,0.1070986,93342.0,93331.0,0.0617]
[1745508079688,0.4678986,93342.0,93341.0,4e-08]
[1745508079884,0.1071112,93331.0,93325.0,0.01319622]
[1745508080083,0.1071112,93331.0,93321.0,0.0617]
[1745508080589,0.1071158,93327.0,93314.0,0.27319679]
[1745508080778,0.1071192,93324.0,93314.0,0.27319679]
[1745508080978,0.1071296,93315.0,93314.0,0.27319679]
[1745508081178,0.1071296,93315.0,93314.0,0.37319679]
[1745508081381,0.0613,93323.0,93322.0,0.1071215]
[1745508081587,0.1684204,93323.0,93322.0,0.5008]
[1745508081991,0.1684204,93323.0,93322.0,0.3608]
[1745508082495,0.1684204,93323.0,93322.0,0.4222]
[1745508082686,0.1684204,93323.0,93322.0,0.3608]
[1745508083793,0.1694204,93323.0,93322.0,0.3718]
[1745508084891,0.1694204,93323.0,93322.0,0.6089215]
[1745508085082,0.1694204,93323.0,93322.0,0.5018]
[1745508085289,0.1694204,93323.0,93322.0,0.011]
[1745508085680,0.2303204,93323.0,93322.0,0.011]
[1745508087297,0.3374764,93323.0,93322.0,0.011]
[1745508088195,0.2303204,93323.0,93322.0,0.011]
[1745508088395,0.7303204,93323.0,93322.0,0.011]
[1745508089797,0.7303204,93323.0,93322.0,0.141]
[1745508090799,0.2303204,93323.0,93322.0,0.141]
[1745508091599,0.107118,93328.0,93327.0,0.0535571]
[1745508091792,0.107118,93328.0,93327.0,0.5543571]
[1745508092193,0.053557,93329.0,93328.0,0.1071146]
[1745508092489,0.0535395,93360.0,93333.0,0.0535543]
[1745508092802,0.0585,93347.0,93346.0,0.107094]
[1745508093001,0.1070874,93352.0,93351.0,0.1070882]
[1745508093299,0.1070837,93355.0,93354.0,0.1606267]
[1745508093499,0.0011,93357.0,93356.0,0.1070825]
[1745508093697,0.0011,93357.0,93356.0,0.2370825]
[1745508094793,0.0011,93357.0,93356.0,0.24993876]
[1745508095195,0.0011,93357.0,93356.0,0.42193876]
[1745508095593,0.0011,93357.0,93356.0,0.18485626]
[1745508095800,0.1081814,93357.0,93356.0,0.172]
[1745508096092,0.1081814,93357.0,93356.0,0.003]
[1745508096498,0.2251814,93357.0,93356.0,0.003]
[1745508097201,0.2251814,93357.0,93356.0,0.002]
[1745508097385,0.2251814,93357.0,93356.0,0.001]
[1745508097891,0.1070894,93350.0,93349.0,0.4678905]
[1745508098099,0.1070894,93350.0,93349.0,0.5108]
[1745508098596,0.1070894,93350.0,93349.0,0.3608]
[1745508098806,0.2286894,93350.0,93349.0,0.5008]
[1745508099690,0.2286894,93350.0,93349.0,0.6098905]
[1745508099883,0.2286894,93350.0,93349.0,0.6128905]
[1745508100488,0.2286894,93350.0,93349.0,0.2520905]
[1745508100892,0.2286894,93350.0,93349.0,0.145]
[1745508102503,0.2286894,93350.0,93349.0,0.005]
[1745508102804,0.1071032,93339.0,93337.0,0.0535521]
[1745508102992,0.1649032,93338.0,93337.0,0.18582725]
[1745508103195,0.1649032,93338.0,93337.0,0.13227515]
[1745508103894,0.1071055,93336.0,93335.0,0.3608]
[1745508104098,0.1071158,93327.0,93323.0,0.0535601]
[1745508104298,0.1071158,93327.0,93326.0,0.52031369]
[1745508104802,0.3608,93332.0,93326.0,0.52031369]
[1745508104803,0.0545513,93339.0,93326.0,0.78666521]
[1745508105106,0.0582,93338.0,93337.0,0.1071043]
[1745508105298,0.108102,93339.0,93338.0,0.1071032]
[1745508105504,0.107102,93339.0,93338.0,0.2371032]
[1745508106604,0.07524,93344.0,93343.0,0.1070974]
[1745508106813,0.1823363,93344.0,93343.0,0.2570974]
[1745508107007,0.07524,93344.0,93343.0,0.2570974]
[1745508107312,0.1823363,93344.0,93343.0,0.6178974]
[1745508107499,0.07524,93344.0,93343.0,0.6178974]
[1745508107811,0.1833363,93344.0,93343.0,0.6178974]
[1745508108104,0.1071066,93335.0,93330.0,0.0616]
[1745508108305,0.1071066,93335.0,93334.0,0.4808]
[1745508108506,0.1071066,93335.0,93334.0,0.5879078]
[1745508109211,0.1071066,93335.0,93334.0,0.4808]
[1745508109512,0.1071066,93335.0,93334.0,0.5899078]
[1745508109701,0.1071066,93335.0,93334.0,0.5929078]
[1745508109904,0.1071066,93335.0,93334.0,0.4858]
[1745508110101,0.5280066,93335.0,93334.0,0.005]
[1745508110405,0.1071158,93327.0,93326.0,0.27319679]
[1745508111203,0.2265158,93327.0,93326.0,0.27319679]
[1745508112205,0.2275158,93327.0,93326.0,0.27619679]
[1745508112706,0.2275158,93327.0,93326.0,0.27919679]
[1745508113298,0.1204,93327.0,93326.0,0.27919679]
[1745508114608,0.0603,93327.0,93326.0,0.27919679]
[1745508115004,0.0603,93327.0,93326.0,0.51631369]
[1745508115313,0.001,93327.0,93326.0,0.51631369]
[1745508115611,0.001,93327.0,93326.0,0.54631369]
[1745508116098,0.001,93327.0,93326.0,0.71831369]
[1745508116305,0.16095279,93370.0,93326.0,1.07914879]
[1745508116511,0.16095279,93370.0,93353.0,0.107086]
[1745508116512,0.19784,93354.0,93353.0,0.107086]
[1745508116814,0.19784,93354.0,93353.0,0.13]
[1745508116997,0.19784,93354.0,93351.0,0.1070882]
[1745508117202,0.19784,93354.0,93351.0,0.15]
[1745508117410,0.19784,93354.0,93351.0,0.2570877]
[1745508117611,0.19784,93354.0,93349.0,0.3608]
[1745508117811,0.19784,93354.0,93349.0,0.60789]
[1745508118108,0.19784,93354.0,93349.0,0.5008]
[1745508118516,0.19884,93354.0,93349.0,0.6078897]
[1745508118908,0.19784,93354.0,93349.0,0.6078897]
[1745508119112,0.19884,93354.0,93350.0,0.059]
[1745508119318,0.19984,93354.0,93350.0,0.059]
[1745508119609,0.19984,93354.0,93351.0,0.053544]
[1745508119805,0.07724,93354.0,93353.0,0.107086]
[1745508120002,0.07624,93354.0,93353.0,0.227086]
[1745508120203,0.003,93354.0,93353.0,0.21420599]
[1745508120414,0.0011,93357.0,93356.0,0.1070825]
[1745508120716,0.0011,93357.0,93356.0,0.2470825]
[1745508121218,0.0011,93357.0,93356.0,0.52619849]
[1745508121407,1e-07,93357.0,93356.0,0.77619849]
[1745508122313,0.07524,93393.0,93386.0,0.1070481]
[1745508122514,0.07524,93393.0,93386.0,0.2470481]
[1745508122717,0.0535218,93390.0,93386.0,0.2470481]
[1745508123123,0.1052,93400.0,93386.0,0.1070481]
[1745508123309,0.1052,93400.0,93386.0,0.2570481]
[1745508123504,0.1052,93400.0,93386.0,0.3641281]
[1745508123911,0.1070516,93383.0,93382.0,0.3608]
[1745508124109,0.0583,93397.0,93383.0,0.0535258]
[1745508124307,0.0535202,93393.0,93386.0,0.1070481]
[1745508124509,0.1070436,93390.0,93386.0,0.2670481]
[1745508124705,0.0051,93387.0,93386.0,0.2670481]
[1745508125107,0.0011,93387.0,93386.0,0.4390481]
[1745508125817,0.0021,93387.0,93386.0,0.4390481]
[1745508126319,0.109147,93387.0,93386.0,0.4390481]
[1745508126516,0.109147,93387.0,93386.0,0.172]
[1745508127123,0.1070481,93386.0,93385.0,0.1070489]
[1745508127418,0.1070481,93386.0,93385.0,0.1638489]
[1745508127610,0.1685481,93386.0,93385.0,0.1638489]
[1745508128317,0.0021,93387.0,93386.0,0.1070481]
[1745508128516,0.0021,93387.0,93386.0,0.2872481]
[1745508128821,0.1052,93400.0,93399.0,0.1070332]
[1745508129021,0.1052,93400.0,93399.0,0.2570332]
[1745508129423,0.1052,93400.0,93399.0,0.3186332]
[1745508129620,0.1052,93400.0,93399.0,0.3788332]
[1745508130222,0.2122321,93400.0,93399.0,0.3788332]
[1745508130524,0.2162321,93400.0,93399.0,0.3788332]
[1745508131627,0.2202321,93400.0,93399.0,0.3788332]
[1745508132027,0.2202321,93400.0,93399.0,0.2288332]
[1745508132326,0.2202321,93400.0,93399.0,0.3288332]
[1745508133624,0.1132,93400.0,93399.0,0.3288332]
[1745508134517,0.1132,93400.0,93399.0,0.3588332]
[1745508134716,0.01069547,93407.0,93405.0,0.1070263]
[1745508135022,0.01069547,93407.0,93405.0,0.7248863]
[1745508135225,0.01069547,93407.0,93405.0,1.1468863]
[1745508135621,0.01069547,93407.0,93405.0,1.2668863]
[1745508135825,0.0029634,93407.0,93406.0,0.1070252]
[1745508136033,0.0029634,93407.0,93406.0,0.4840852]
[1745508136218,0.01073004,93409.0,93407.0,0.107024]
[1745508136422,0.01073004,93409.0,93407.0,0.354084]
[1745508136619,0.01073004,93409.0,93407.0,0.724084]
[1745508136924,0.01073004,93409.0,93407.0,0.474084]
[1745508137132,0.01073004,93409.0,93407.0,0.646084]
[1745508137536,0.00888001,93414.0,93410.0,0.1070206]
[1745508137717,0.00888001,93414.0,93410.0,0.6078206]
[1745508138032,0.00888001,93414.0,93410.0,0.7148766]
[1745508138231,0.00888001,93414.0,93410.0,0.8868766]
[1745508138527,0.00888001,93414.0,93410.0,1.0018766]
[1745508138730,0.00888001,93414.0,93410.0,1.0028766]
[1745508138931,0.01140544,93421.0,93412.0,0.1070183]
[1745508139127,0.06593179,93439.0,93433.0,0.1069943]
[1745508139323,0.00903179,93439.0,93433.0,0.6277943]
[1745508139531,0.00903179,93439.0,93433.0,0.73482229]
[1745508139824,0.00903179,93439.0,93433.0,0.85252229]
[1745508140034,0.11903555,93438.0,93433.0,0.85252229]
[1745508140217,0.01204665,93438.0,93433.0,1.02452229]
[1745508140719,0.01320968,93434.0,93433.0,1.02452229]
[1745508141726,0.01320968,93434.0,93433.0,1.04013218]
[1745508141924,0.01520968,93434.0,93433.0,1.04013218]
[1745508142920,0.12514453,93451.0,93433.0,1.04013218]
[1745508143139,0.01165852,93447.0,93446.0,0.1069794]
[1745508143339,0.01165852,93447.0,93446.0,0.2669794]
[1745508144024,0.01165852,93447.0,93446.0,0.3837794]
[1745508144226,0.01165852,93447.0,93446.0,0.76056711]
[1745508144426,0.01565852,93447.0,93446.0,0.86758231]
[1745508145127,0.01565852,93447.0,93446.0,1.03958231]
[1745508145323,0.01965852,93447.0,93446.0,1.03958231]
[1745508145531,0.01865852,93447.0,93446.0,1.05208789]
[1745508146033,0.01665852,93447.0,93446.0,1.05208789]
[1745508146235,0.01665852,93447.0,93446.0,1.06002125]
[1745508146437,0.12363672,93447.0,93446.0,1.06002125]
[1745508146829,0.18603672,93447.0,93446.0,1.06002125]
[1745508147332,0.18603672,93447.0,93446.0,0.88802125]
[1745508147526,0.18303672,93447.0,93446.0,0.88802125]
[1745508147720,0.18403672,93447.0,93446.0,0.87203034]
[1745508147924,0.18203672,93447.0,93446.0,0.87203034]
[1745508148137,0.18303672,93447.0,93446.0,0.87203034]
[1745508148326,0.18203672,93447.0,93446.0,0.87203034]
[1745508148525,0.18303672,93447.0,93446.0,0.87203034]
[1745508149340,0.18303672,93447.0,93446.0,0.8875249]
[1745508149638,0.18303672,93447.0,93446.0,1.30314344]
[1745508149939,0.18303672,93447.0,93446.0,1.28764888]
[1745508150141,0.24073672,93447.0,93446.0,0.79685748]
[1745508150331,0.24073672,93447.0,93446.0,0.4235519]
[1745508151045,0.24073672,93447.0,93446.0,0.5305313]
[1745508151629,0.24073672,93447.0,93446.0,0.4235519]
[1745508151836,0.24073672,93447.0,93446.0,0.02065241]
[1745508152042,0.13375852,93447.0,93444.0,0.21433024]
[1745508152337,0.1069805,93445.0,93444.0,0.32131194]
[1745508152635,0.1069805,93445.0,93434.0,0.26791281]
[1745508152636,0.106992,93435.0,93434.0,0.26791281]
[1745508152826,0.467792,93435.0,93434.0,0.26791281]
[1745508153224,0.967792,93435.0,93434.0,0.26791281]
[1745508153428,1.163012,93435.0,93434.0,0.26791281]
[1745508153937,1.52004,93435.0,93434.0,0.26791281]
[1745508154236,1.52004,93435.0,93434.0,0.26991281]
[1745508154434,1.52004,93435.0,93434.0,0.002]
[1745508154637,1.52004,93435.0,93434.0,0.004]
[1745508155438,1.163012,93435.0,93434.0,0.004]
[1745508156233,1.52004,93435.0,93434.0,0.004]
[1745508156429,1.44492,93435.0,93434.0,0.004]
[1745508156732,1.163012,93435.0,93434.0,0.004]
[1745508156932,1.52004,93435.0,93434.0,0.004]
[1745508157739,1.52004,93435.0,93434.0,1e-07]
[1745508158143,1.52797543,93435.0,93434.0,1e-07]
[1745508158529,1.52004,93435.0,93434.0,1e-07]
[1745508159042,0.1070126,93417.0,93416.0,0.26791281]
[1745508159239,0.9037326,93417.0,93416.0,0.26791281]
[1745508159832,1.3800806,93417.0,93416.0,0.13663021]
[1745508160431,1.3810806,93417.0,93416.0,0.10483591]
[1745508160631,0.1070309,93401.0,93400.0,0.32590035]
[1745508160842,0.9037509,93401.0,93400.0,0.32590035]
[1745508161140,1.0108149,93401.0,93400.0,0.32590035]
[1745508162043,0.9037509,93401.0,93400.0,0.32590035]
[1745508162234,1.0108149,93401.0,93400.0,0.32590035]
[1745508162434,1.0108149,93401.0,93400.0,0.32790035]
[1745508162643,1.5108149,93401.0,93400.0,0.32790035]
[1745508163241,1.5108149,93401.0,93400.0,0.33090035]
[1745508164442,1.4037509,93401.0,93400.0,0.33090035]
[1745508165938,1.4037509,93401.0,93400.0,0.005]
[1745508170248,0.8608,93401.0,93400.0,0.005]
[1745508170544,0.07516,93405.0,93404.0,0.1070275]
[1745508170744,0.07516,93405.0,93404.0,0.2470275]
[1745508170745,0.1821863,93405.0,93404.0,0.2470275]
[1745508170944,0.1821863,93405.0,93404.0,0.1070275]
[1745508171139,0.1821863,93405.0,93404.0,0.2260275]
[1745508171541,0.1821863,93405.0,93404.0,0.119]
[1745508171741,0.1821863,93405.0,93404.0,0.121]
[1745508171935,0.0599,93408.0,93404.0,0.241]
[1745508172141,0.0599,93408.0,93406.0,0.107024]
[1745508172348,0.1669229,93408.0,93407.0,0.119]
[1745508172548,0.2420829,93408.0,93407.0,0.119]
[1745508172751,0.3000829,93408.0,93407.0,0.119]
[1745508173551,0.107024,93407.0,93406.0,0.001]
[1745508173740,0.1070275,93404.0,93403.0,0.0588]
[1745508174141,0.1070401,93393.0,93392.0,0.1129]
[1745508174341,0.4678401,93393.0,93392.0,0.1129]
[1745508174547,0.5430001,93393.0,93392.0,0.1129]
[1745508175443,0.43596,93393.0,93392.0,0.2249412]
[1745508175643,0.5430001,93393.0,93392.0,0.3749412]
[1745508176352,0.5430001,93393.0,93392.0,0.3789412]
[1745508176755,0.5430001,93393.0,93392.0,0.1219]
[1745508177647,0.07516,93393.0,93392.0,0.3689412]
[1745508178344,0.1070401,93393.0,93392.0,0.3689412]
[1745508178746,0.4678401,93393.0,93392.0,0.1219]
[1745508179042,0.1070401,93393.0,93392.0,0.2289412]
[1745508180556,0.1070401,93393.0,93392.0,0.1219]
[1745508181059,0.4641161,93393.0,93392.0,1e-07]
[1745508181352,1.34091595,93393.0,93392.0,1e-07]
[1745508181551,1.45861595,93393.0,93392.0,1e-07]
[1745508182152,0.107047,93387.0,93386.0,2e-08]
[1745508182352,0.83242204,93387.0,93386.0,2e-08]
[1745508182653,1.18950204,93387.0,93386.0,2e-08]
[1745508183250,1.55160204,93387.0,93386.0,2e-08]
[1745508183653,1.55460204,93387.0,93386.0,2e-08]
[1745508183954,1.52768204,93387.0,93386.0,2e-08]
[1745508185755,1.051007,93387.0,93386.0,2e-08]
[1745508185960,0.551007,93387.0,93386.0,2e-08]
[1745508186263,0.551007,93387.0,93386.0,0.11130002]
[1745508186648,0.475847,93387.0,93386.0,0.11130002]
[1745508186848,0.551007,93387.0,93386.0,0.11130002]
[1745508187251,0.44396,93387.0,93386.0,0.21834812]
[1745508187660,0.008,93387.0,93386.0,0.36834812]
[1745508188051,0.008,93387.0,93386.0,0.38394389]
[1745508188251,0.008,93387.0,93386.0,0.55594389]
[1745508188560,0.115047,93387.0,93386.0,0.55594389]
[1745508188962,0.008,93387.0,93386.0,0.55594389]
[1745508189159,0.008,93387.0,93386.0,0.21834812]
[1745508189354,0.475847,93387.0,93386.0,0.11130002]
[1745508189549,0.115047,93387.0,93386.0,0.21834812]
[1745508189948,0.008,93387.0,93386.0,0.36834812]
[1745508190146,0.115047,93387.0,93386.0,0.36834812]
[1745508190948,0.008,93387.0,93386.0,0.36834812]
[1745508191158,0.008,93387.0,93386.0,0.54034812]
[1745508192260,0.008,93387.0,93386.0,0.55613075]
[1745508192663,0.005,93387.0,93386.0,0.55613075]
[1745508192862,0.1070404,93393.0,93392.0,0.1070412]
[1745508193049,0.1070404,93393.0,93392.0,0.27282383]
[1745508193257,0.1070404,93393.0,93392.0,0.44482383]
[1745508193454,0.5749164,93393.0,93392.0,0.18778263]
[1745508193653,0.83704211,93393.0,93392.0,0.172]
[1745508193864,0.83704211,93393.0,93392.0,0.1264092]
[1745508194065,0.9397164,93393.0,93392.0,0.0233806]
[1745508194359,0.107047,93387.0,93386.0,2e-08]
[1745508194563,0.467847,93387.0,93386.0,2e-08]
[1745508194748,0.824927,93387.0,93386.0,2e-08]
[1745508195160,1.116327,93387.0,93386.0,2e-08]
[1745508195553,1.120327,93387.0,93386.0,2e-08]
[1745508196352,1.48490204,93387.0,93386.0,2e-08]
[1745508196553,1.98990204,93387.0,93386.0,2e-08]
[1745508198665,1.73990204,93387.0,93386.0,2e-08]
[1745508199667,1.98990204,93387.0,93386.0,2e-08]
[1745508199966,1.98990204,93387.0,93356.0,0.00107116]
[1745508199967,0.1070814,93357.0,93356.0,0.00107116]
[1745508200159,1.0758414,93357.0,93356.0,0.00107116]
[1745508200364,1.1829574,93357.0,93356.0,0.00107116]
[1745508200864,1.2974574,93357.0,93356.0,0.00107116]
[1745508201064,1.2974574,93357.0,93356.0,0.00307116]
[1745508201259,1.66203244,93357.0,93356.0,6e-08]
[1745508201461,0.1070871,93352.0,93351.0,6e-08]
[1745508201765,0.1822471,93352.0,93351.0,6e-08]
[1745508201960,0.2893711,93352.0,93351.0,6e-08]
[1745508202269,0.4613711,93352.0,93351.0,6e-08]
[1745508202771,0.4613711,93352.0,93351.0,0.00300006]
[1745508202957,0.9613711,93352.0,93351.0,0.00300006]
[1745508203365,0.9613711,93352.0,93351.0,6e-08]
[1745508203567,0.1071158,93327.0,93321.0,0.1622181]
[1745508203779,0.5430758,93327.0,93321.0,0.2748181]
[1745508204665,0.6536758,93327.0,93321.0,0.2748181]
[1745508204966,1.1536758,93327.0,93321.0,0.2748181]
[1745508205560,1.1546758,93327.0,93326.0,0.00707151]
[1745508205760,1.1556758,93327.0,93326.0,0.01307151]
[1745508207068,1.12616894,93327.0,93326.0,0.01307151]
[1745508207269,1.40528474,93327.0,93326.0,0.01307151]
[1745508208469,1.40328474,93327.0,93326.0,0.00707151]
[1745508209169,1.29613274,93327.0,93326.0,0.00707151]
[1745508209670,1.40328474,93327.0,93326.0,0.00707151]
[1745508214067,1.40332474,93327.0,93326.0,0.00707151]
[1745508215262,1.23132474,93327.0,93326.0,0.00707151]
[1745508216083,1.12417274,93327.0,93326.0,0.00707151]
[1745508216264,1.06857274,93327.0,93326.0,0.00707151]
[1745508220179,1.01357274,93327.0,93326.0,0.00707151]
[1745508222786,0.93837274,93327.0,93326.0,0.00707151]
[1745508223078,1.01357274,93327.0,93326.0,0.00707151]
[1745508226182,1.30040894,93327.0,93312.0,0.1142]
[1745508226479,0.4679319,93313.0,93312.0,0.1142]
[1745508226674,0.4679319,93313.0,93312.0,0.0553]
[1745508226873,0.107133,93312.0,93311.0,0.057]
[1745508227074,0.107141,93305.0,93304.0,0.1098]
[1745508227981,0.607141,93305.0,93304.0,0.1098]
[1745508228280,0.608141,93305.0,93304.0,0.1128]
[1745508229176,0.609141,93305.0,93304.0,0.1158]
[1745508229986,0.969941,93305.0,93304.0,0.1158]
[1745508235180,0.969941,93305.0,93304.0,0.27866549]
[1745508237085,0.969941,93305.0,93304.0,0.1158]
[1745508239592,0.969941,93305.0,93304.0,0.006]
[1745508240588,0.1071422,93304.0,93303.0,6e-08]
[1745508240778,0.1071502,93297.0,93291.0,0.0527]
[1745508240982,0.1071502,93297.0,93296.0,5e-08]
[1745508240983,0.5431502,93297.0,93296.0,5e-08]
[1745508241293,0.7151502,93297.0,93296.0,5e-08]
[1745508241480,1.2151502,93297.0,93296.0,5e-08]
[1745508241681,1.3242502,93297.0,93296.0,5e-08]
[1745508241988,0.1071583,93290.0,93289.0,0.09525731]
[1745508242189,0.4679583,93290.0,93289.0,0.09525731]
[1745508242396,0.83253334,93290.0,93289.0,0.00999341]
[1745508242584,0.93972534,93290.0,93289.0,1e-08]
[1745508242785,1.04882534,93290.0,93289.0,1e-08]
[1745508243197,1.73271818,93290.0,93289.0,1e-08]
[1745508243398,1.73271818,93290.0,93273.0,0.0527]
[1745508243399,0.1071767,93274.0,93273.0,0.0527]
[1745508243694,0.1071767,93274.0,93273.0,0.1106]